bitfinex/quotes_ETHUSD_20220120
["timestamp","ask_amount","ask_price","bid_price","bid_amount"]
[1642719302607,0.00341054,3064.0,3063.9,0.97899]
[1642719302841,0.00341054,3064.0,3063.9,1.27899]
[1642719303048,0.00341054,3064.0,3063.9,0.81579]
[1642719303447,0.00341054,3064.0,3063.6,0.1305]
[1642719303647,0.00341054,3064.0,3063.1,1.63196]
[1642719303852,1.52545224,3064.4,3062.7,0.1632]
[1642719303853,0.00113685,3063.9,3062.7,0.1632]
[1642719304053,0.00113685,3063.9,3063.2,0.00284212]
[1642719304250,2.37817134,3064.3,3063.2,0.00284212]
[1642719304251,2.00222134,3064.1,3063.2,0.00284212]
[1642719304450,2.00222134,3064.1,3062.6,0.13819997]
[1642719304451,0.00222134,3064.2,3062.7,0.00568424]
[1642719304651,0.00392661,3064.0,3062.7,0.16888424]
[1642719304851,0.00227369,3064.1,3063.0,0.8162]
[1642719305051,0.00222134,3064.2,3063.0,0.8162]
[1642719305052,0.00113685,3063.9,3063.0,0.8162]
[1642719305254,0.00170527,3064.0,3063.1,0.00341054]
[1642719305451,0.00222134,3064.2,3063.1,0.00341054]
[1642719305452,0.00227369,3064.1,3063.1,0.00341054]
[1642719305652,0.00113685,3063.9,3063.1,0.00341054]
[1642719305965,0.00222134,3064.2,3063.1,0.81616]
[1642719305966,0.00227369,3064.1,3063.1,0.81616]
[1642719306154,0.00227369,3064.1,3063.1,1.11616]
[1642719306351,2.2354035,3064.2,3063.1,1.11616]
[1642719306352,0.00170527,3064.0,3063.1,0.81616]
[1642719306631,0.00170527,3064.0,3063.0,0.00397897]
[1642719306818,0.00503422,3063.8,3063.0,0.00397897]
[1642719307222,0.08098422,3063.8,3062.7,0.00568424]
[1642719307423,0.01809869,3063.7,3062.7,0.00568424]
[1642719307625,0.39909869,3063.7,3062.3,0.00795793]
[1642719307828,18.95,3063.5,3061.9,0.01023162]
[1642719308024,0.01116624,3063.3,3061.9,0.01023162]
[1642719308224,1.1129,3063.3,3062.1,1.63271]
[1642719308425,2.21621621,3063.2,3062.1,1.63271]
[1642719308630,21.16621621,3063.2,3062.2,0.00852635]
[1642719308827,18.95,3063.1,3062.2,0.00852635]
[1642719309028,18.95,3062.9,3061.9,0.01023162]
[1642719309424,18.95,3062.9,3061.7,0.01136847]
[1642719309623,0.8165806,3063.0,3061.8,2.77126949]
[1642719309824,19.7665806,3063.0,3061.8,2.77126949]
[1642719310023,20.5831706,3063.0,3061.9,0.01023162]
[1642719310455,2.25572815,3062.9,3061.9,0.01023162]
[1642719310662,2.25572815,3062.9,3061.7,0.01136847]
[1642719310854,21.20572815,3062.9,3061.8,2.7713031]
[1642719311057,21.20572815,3062.9,3061.7,0.01136847]
[1642719311058,18.95,3062.9,3061.9,1.3]
[1642719311261,18.95,3062.9,3061.9,0.31023162]
[1642719311461,2.20694864,3062.8,3062.0,0.0096632]
[1642719311658,2.15145848,3062.8,3062.0,0.0096632]
[1642719311857,19.76663,3062.8,3062.0,0.0096632]
[1642719312260,18.95,3062.8,3062.0,0.0096632]
[1642719312862,19.76662,3062.8,3062.0,0.0096632]
[1642719313361,18.95,3062.8,3062.0,0.0096632]
[1642719313558,18.95,3062.8,3061.4,0.01307374]
[1642719313764,18.95,3062.8,3061.5,2.90200414]
[1642719313960,18.95,3062.8,3061.6,2.77150414]
[1642719314211,19.76662,3062.8,3061.7,0.1305]
[1642719314411,19.76662,3062.8,3061.8,2.77152423]
[1642719314608,19.76662,3062.8,3061.9,1.0]
[1642719314811,2.2118644,3062.7,3061.9,0.31023162]
[1642719315112,18.95,3062.6,3062.0,0.0096632]
[1642719315513,18.95,3062.6,3061.6,0.01193689]
[1642719315913,18.95,3062.6,3061.3,0.83028216]
[1642719316113,18.95,3062.6,3061.4,2.77169745]
[1642719316315,18.95,3062.6,3061.4,2.78477119]
[1642719316514,18.95,3062.6,3061.5,3.78420277]
[1642719316714,18.95,3062.9,3061.6,2.77169745]
[1642719316915,0.07595,3063.4,3061.7,0.03848068]
[1642719317113,0.07595,3063.4,3061.9,0.01204765]
[1642719317314,0.81643,3063.6,3062.1,0.81643]
[1642719317518,1.54149448,3063.8,3062.1,2.89022082]
[1642719317721,0.07595,3064.0,3062.2,2.77968779]
[1642719317722,1.54149448,3064.0,3062.2,2.77968779]
[1642719317985,18.95,3063.9,3062.4,7.99]
[1642719318172,18.95113685,3063.9,3062.4,7.99]
[1642719318370,0.6944948,3063.8,3062.5,0.00682108]
[1642719318570,0.6944948,3063.8,3062.5,0.50682108]
[1642719318770,0.00682108,3063.7,3062.5,0.50682108]
[1642719318979,0.00682108,3063.7,3062.6,0.1305]
[1642719319177,0.00625265,3063.6,3062.7,0.81628]
[1642719319574,0.69465532,3063.8,3062.8,0.4305]
[1642719319575,0.00568423,3063.5,3062.8,0.4305]
[1642719319976,0.00511581,3063.4,3062.8,0.3]
[1642719320177,0.00511581,3063.4,3062.6,0.4305]
[1642719320375,0.00454738,3063.3,3062.7,2.77079314]
[1642719320578,0.00454738,3063.3,3062.8,1.4305]
[1642719320777,0.00397896,3063.2,3062.9,0.81625]
[1642719321177,0.00341054,3063.1,3062.9,0.81625]
[1642719321377,0.00341054,3063.1,3062.8,0.7305]
[1642719321607,0.00284211,3063.0,3062.8,0.4305]
[1642719321805,0.00284211,3063.0,3062.8,0.1305]
[1642719322004,0.00227369,3062.9,3062.8,1.24678]
[1642719323410,0.00227369,3062.9,3062.8,1.40998]
[1642719324709,0.00227369,3062.9,3062.8,1.27948]
[1642719325755,0.00227369,3062.9,3062.8,1.11628]
[1642719326762,0.00227369,3062.9,3062.8,1.27948]
[1642719327959,0.00227369,3062.9,3062.8,0.81628]
[1642719328161,0.00227369,3062.9,3062.6,1.76295]
[1642719328359,0.00227369,3062.9,3062.6,1.63245]
[1642719328559,0.00170527,3062.8,3062.6,1.63245]
[1642719329125,0.00113684,3062.7,3062.6,1.63245]
[1642719330217,0.00113684,3062.7,3062.6,1.63161833]
[1642719330616,0.00113684,3062.7,3062.6,1.93161833]
[1642719331317,0.00113684,3062.7,3062.6,0.3]
[1642719331520,0.00113684,3062.7,3062.4,0.3]
[1642719331920,0.00113684,3062.7,3062.3,1.93263]
[1642719335174,0.00113684,3062.7,3062.3,1.63263]
[1642719335369,0.00113684,3062.7,3061.9,0.81651]
[1642719335565,0.00113684,3062.7,3061.2,1.63303]
[1642719335765,0.00113684,3062.7,3062.0,0.00284212]
[1642719336165,0.81666,3062.6,3061.4,0.00625266]
[1642719336363,0.81666,3062.6,3061.1,2.7717102]
[1642719336364,1.12002842,3062.6,3061.1,0.00515793]
[1642719336615,0.0028,3062.5,3061.2,2.77638008]
[1642719336805,0.0028,3062.5,3061.0,0.012775]
[1642719336806,0.0028,3062.5,3061.1,0.00515793]
[1642719337003,1.11666,3062.6,3061.3,0.00402108]
[1642719337004,0.00223157,3062.4,3061.3,0.00402108]
[1642719337213,0.00223157,3062.4,3061.2,1.63322]
[1642719337409,18.95166315,3062.3,3061.3,0.00402108]
[1642719337614,18.95166315,3062.3,3061.3,2.108e-05]
[1642719337615,0.77148267,3062.2,3061.3,2.108e-05]
[1642719337812,0.77148267,3062.2,3060.7,2.57200444]
[1642719337813,3.45,3062.0,3060.7,2.57200444]
[1642719338017,3.45,3062.0,3060.6,0.6]
[1642719338018,18.95,3061.9,3060.6,0.6]
[1642719338212,18.95341054,3061.9,3060.7,0.00341055]
[1642719338412,18.95,3061.7,3060.7,0.00341055]
[1642719338614,18.95,3061.5,3060.7,0.00341055]
[1642719338813,0.8169,3061.6,3060.7,0.00341055]
[1642719338814,0.00170527,3061.6,3060.7,0.00341055]
[1642719339012,0.30170527,3061.6,3060.7,0.00341055]
[1642719339212,0.00113684,3061.5,3060.7,0.00341055]
[1642719339413,0.89294,3061.4,3060.7,0.00341055]
[1642719339614,19.7670564,3061.3,3060.7,0.00341055]
[1642719340359,18.95,3061.2,3060.7,0.00341055]
[1642719340559,18.95,3061.0,3060.7,0.00341055]
[1642719340760,18.95,3060.9,3060.7,0.00341055]
[1642719340963,18.95,3060.9,3060.7,1.055e-05]
[1642719340964,20.58447,3060.9,3060.7,1.055e-05]
[1642719341666,23.21716,3060.8,3060.7,1.055e-05]
[1642719342064,24.49551,3060.8,3060.7,1.055e-05]
[1642719343264,20.74551,3060.8,3060.7,1.055e-05]
[1642719343467,0.817,3061.2,3060.8,0.01465014]
[1642719343668,0.00113684,3061.5,3060.8,0.01465014]
[1642719343870,0.00226315,3061.1,3060.7,0.13051055]
[1642719344132,0.00396842,3061.4,3060.7,1.055e-05]
[1642719344322,18.95,3061.8,3060.7,1.055e-05]
[1642719344323,0.00169472,3061.0,3060.7,1.055e-05]
[1642719344523,18.95,3061.8,3060.7,1.055e-05]
[1642719344524,0.0034,3061.3,3060.7,1.055e-05]
[1642719344723,0.0011263,3060.9,3060.7,1.055e-05]
[1642719344922,0.00283157,3061.2,3060.7,1.055e-05]
[1642719345132,19.766912,3061.6,3060.7,1.055e-05]
[1642719345323,0.00226315,3061.1,3060.7,1.055e-05]
[1642719345524,0.00453684,3061.5,3060.7,1.055e-05]
[1642719345724,0.00169472,3061.0,3060.7,1.055e-05]
[1642719346025,0.0011263,3060.9,3060.7,1.055e-05]
[1642719346423,0.00453684,3061.5,3060.7,1.055e-05]
[1642719346624,0.00453684,3061.5,3060.6,0.6]
[1642719346625,0.00453684,3061.5,3060.6,0.10001055]
[1642719346823,0.00397897,3061.4,3060.6,0.10001055]
[1642719347228,0.00341055,3061.3,3060.7,0.44606212]
[1642719347432,0.00341055,3061.3,3060.8,0.1305]
[1642719347633,0.89268,3062.4,3060.9,0.41120168]
[1642719347634,0.00284212,3061.2,3060.9,0.41120168]
[1642719347856,0.00284212,3061.2,3061.0,0.1305]
[1642719348056,0.0022737,3061.1,3061.0,0.1305]
[1642719348263,0.0022737,3061.1,3060.8,0.1305]
[1642719348461,0.00909478,3061.1,3061.0,2.0]
[1642719348662,18.95,3062.3,3061.0,2.5115]
[1642719348962,0.00852636,3062.2,3061.1,0.4305]
[1642719349160,18.95852636,3062.2,3061.1,1.8115]
[1642719349361,0.00795793,3062.1,3061.1,1.8115]
[1642719349781,18.95,3062.2,3061.1,1.8115]
[1642719349782,0.00738951,3062.0,3061.1,1.8115]
[1642719349969,0.00738951,3062.0,3061.2,0.07349541]
[1642719350269,0.00682109,3061.9,3061.3,0.5115]
[1642719350464,0.00682109,3061.9,3061.5,0.0534657]
[1642719350680,6.39003322,3063.9,3061.7,0.05447794]
[1642719350681,0.00625266,3061.8,3061.7,0.05447794]
[1642719350865,0.00625266,3061.8,3061.7,6.7948475]
[1642719351065,0.00625266,3061.8,3061.7,5.5111475]
[1642719351265,0.00625266,3061.8,3061.7,5.6743475]
[1642719351463,0.00625266,3061.8,3061.7,2.9605]
[1642719351706,1.54149448,3063.9,3061.7,2.9605]
[1642719351707,1.49774714,3063.9,3061.8,3.4]
[1642719351911,0.89447101,3064.1,3062.3,0.81631]
[1642719352110,0.01136847,3063.8,3062.4,0.381]
[1642719352506,0.01080005,3063.7,3062.4,0.381]
[1642719352913,0.01023162,3063.6,3062.4,0.381]
[1642719353308,0.0096632,3063.5,3062.4,0.381]
[1642719353711,0.00909478,3063.4,3062.4,0.681]
[1642719353914,0.00909478,3063.4,3062.6,0.81631]
[1642719354116,0.00852635,3063.3,3062.6,0.95739994]
[1642719354517,0.00795793,3063.2,3062.6,0.65739994]
[1642719354914,0.00738951,3063.1,3062.6,0.65739994]
[1642719355401,0.00682108,3063.0,3062.6,0.65739994]
[1642719355795,0.00625266,3062.9,3062.6,0.95739994]
[1642719356194,0.70886494,3063.8,3062.8,0.81623]
[1642719356395,18.95,3063.9,3062.9,0.381]
[1642719356595,0.01080005,3063.7,3062.9,0.381]
[1642719356995,0.01023162,3063.6,3062.9,0.381]
[1642719357395,0.0096632,3063.5,3062.9,0.381]
[1642719357797,0.00909478,3063.4,3063.0,0.8162]
[1642719358002,0.00909478,3063.4,3063.0,1.1972]
[1642719358200,0.00852635,3063.3,3063.0,1.1972]
[1642719358596,0.00795793,3063.2,3063.0,1.1972]
[1642719358998,0.00738951,3063.1,3063.0,1.1972]
[1642719359209,0.00738951,3063.1,3063.0,0.381]
[1642719362217,0.00738951,3063.1,3062.9,0.81623]
[1642719362615,0.00682108,3063.0,3062.9,0.81623]
[1642719366075,0.00682108,3063.0,3062.6,1.40689994]
[1642719366076,0.00682108,3063.0,3062.7,0.81628]
[1642719366474,0.00625266,3062.9,3062.7,0.81628]
[1642719366911,0.00568424,3062.8,3062.7,0.81628]
[1642719367311,0.01250532,3062.8,3062.7,0.81628]
[1642719368817,0.01250532,3062.8,3062.6,1.70689994]
[1642719369216,0.00511581,3062.7,3062.6,1.70689994]
[1642719370217,0.00511581,3062.7,3062.6,1.57639994]
[1642719370460,0.00511581,3062.7,3062.6,0.57639994]
[1642719370660,0.00511581,3062.7,3062.6,1.57639994]
[1642719370862,0.00511581,3062.7,3062.6,0.57639994]
[1642719371060,0.00511581,3062.7,3062.6,1.27639994]
[1642719371266,0.00511581,3062.7,3062.6,0.27639994]
[1642719371461,0.00511581,3062.7,3062.6,1.27639994]
[1642719371662,0.00511581,3062.7,3062.6,0.27639994]
[1642719371861,0.00511581,3062.7,3062.6,1.27639994]
[1642719372061,0.00511581,3062.7,3062.6,0.27639994]
[1642719374720,0.00511581,3062.7,3062.2,1.63263]
[1642719374919,0.00511581,3062.7,3062.3,1.0]
[1642719375124,0.00454739,3062.6,3062.2,1.93263]
[1642719375421,0.00397897,3062.5,3062.2,0.3]
[1642719375618,0.00397897,3062.5,3062.0,1.63276]
[1642719375819,0.00341054,3062.4,3062.0,1.63276]
[1642719376020,0.00341054,3062.4,3061.6,1.15997396]
[1642719376220,0.00284212,3062.3,3061.6,1.45997396]
[1642719376720,0.0022737,3062.2,3061.6,1.45997396]
[1642719377122,0.00170527,3062.1,3062.0,1.63276]
[1642719377524,0.00795793,3062.1,3062.0,1.63276]
[1642719378362,0.00795793,3062.1,3062.0,1.93276]
[1642719378564,0.00795793,3062.1,3062.0,1.63276]
[1642719378762,0.00795793,3062.1,3062.0,2.93276]
[1642719379165,0.07595,3063.4,3062.0,2.93276]
[1642719379166,0.03390793,3063.4,3062.0,2.93276]
[1642719379367,18.98390793,3063.4,3062.0,2.93958108]
[1642719379565,0.66774329,3063.3,3062.0,1.63958108]
[1642719379766,0.33390793,3063.4,3062.2,0.8164]
[1642719380066,0.33390793,3063.4,3062.3,0.00511581]
[1642719380267,0.03390793,3063.4,3062.3,0.00511581]
[1642719380666,0.03390793,3063.4,3062.1,0.00625266]
[1642719380866,0.03390793,3063.4,3062.5,0.81634]
[1642719381267,0.03390793,3063.4,3062.0,1.93276]
[1642719381268,0.03390793,3063.4,3062.6,0.00341054]
[1642719381719,0.03390793,3063.4,3062.1,0.00625266]
[1642719381919,0.70165122,3063.4,3062.1,0.00625266]
[1642719382319,19.65165122,3063.4,3062.1,0.00625266]
[1642719382521,2.27459819,3063.3,3062.1,0.00625266]
[1642719382724,2.94288095,3063.3,3062.1,0.00625266]
[1642719382923,0.3,3063.2,3062.1,0.82269266]
[1642719383324,0.3,3063.2,3062.2,0.00568423]
[1642719383523,19.28390793,3063.4,3062.2,0.00568423]
[1642719383722,0.03390793,3063.7,3062.3,0.01272894]
[1642719383925,0.13819997,3063.9,3062.3,0.87421325]
[1642719384130,0.00227369,3063.6,3062.4,0.13504739]
[1642719384524,2.13819997,3063.9,3062.4,0.13504739]
[1642719384525,0.00170527,3063.5,3062.5,0.00397896]
[1642719384926,0.00113685,3063.4,3062.7,0.81623]
[1642719385361,0.00341054,3063.8,3062.8,0.00227369]
[1642719385761,0.13819997,3063.9,3062.6,0.00341054]
[1642719385762,0.00284212,3063.7,3062.6,0.00341054]
[1642719386161,0.00341054,3063.8,3062.8,1.63235]
[1642719386366,0.00341054,3063.8,3062.8,4.2455544]
[1642719386566,0.00284212,3063.7,3062.9,1.13220527]
[1642719386963,0.00568424,3064.2,3063.0,0.00113685]
[1642719387463,0.00511581,3064.1,3063.0,0.00113685]
[1642719387663,0.00511581,3064.1,3063.0,0.81715685]
[1642719387867,0.00454739,3064.0,3063.0,0.81715685]
[1642719388067,0.00454739,3064.0,3063.3,0.81603]
[1642719388366,0.00397897,3063.9,3063.3,0.3]
[1642719388768,0.00341054,3063.8,3063.1,1.11601]
[1642719388966,0.00341054,3063.8,3063.1,0.81601]
[1642719389257,0.00284212,3063.7,3063.2,0.3]
[1642719389461,0.00284212,3063.7,3063.5,0.81602]
[1642719389655,0.00568424,3064.2,3063.5,0.81602]
[1642719389860,0.00568424,3064.2,3063.5,1.41602]
[1642719390061,0.00511581,3064.1,3063.5,0.6]
[1642719390257,0.00511581,3064.1,3063.6,0.1305]
[1642719390455,0.00454739,3064.0,3063.6,0.1305]
[1642719390661,0.00454739,3064.0,3063.5,1.7305]
[1642719390858,0.00397897,3063.9,3063.5,1.6]
[1642719391056,0.00397897,3063.9,3063.5,0.3]
[1642719391256,0.00341054,3063.8,3063.7,0.816]
[1642719391457,1.5232309,3064.4,3063.7,0.816]
[1642719391458,1.44506201,3064.4,3063.7,0.816]
[1642719391657,0.00222101,3064.3,3063.7,1.116]
[1642719391855,0.0022737,3064.2,3063.7,1.116]
[1642719392255,0.00170527,3064.1,3063.7,1.116]
[1642719392659,0.00113685,3064.0,3063.7,1.116]
[1642719393067,0.00506313,3064.3,3063.7,1.116]
[1642719393270,0.00284212,3064.3,3063.8,0.81601]
[1642719393670,0.00284212,3064.3,3063.8,1.11601]
[1642719395082,0.00284212,3064.3,3063.8,1.55918882]
[1642719395278,1.29790413,3064.4,3064.1,0.81572]
[1642719395477,1.29790413,3064.4,3064.1,0.94622]
[1642719395681,1.29790413,3064.4,3064.1,2.24622]
[1642719395875,1.29790413,3064.4,3064.1,3.06194]
[1642719396276,1.29790413,3064.4,3064.1,2.93144]
[1642719396475,1.29790413,3064.4,3064.1,3.7471644]
[1642719396721,1.29790413,3064.4,3064.3,0.17748644]
[1642719396920,1.29790413,3064.4,3064.3,0.99324644]
[1642719397224,1.29790413,3064.4,3064.3,1.59324644]
[1642719397626,1.29790413,3064.4,3064.3,2.59324644]
[1642719397821,1.29790413,3064.4,3064.3,1.59324644]
[1642719398021,1.29790413,3064.4,3064.3,2.59324644]
[1642719401769,1.29790413,3064.4,3064.3,2.57896]
[1642719405516,1.29790413,3064.4,3064.3,2.95996]
[1642719406922,0.00222101,3065.5,3064.5,0.8156886]
[1642719407127,0.00222101,3065.5,3064.8,0.81562]
[1642719407334,3.76360793,3066.1,3064.8,0.81562]
[1642719407335,0.00625266,3065.4,3064.8,0.81562]
[1642719407527,0.00625266,3065.4,3064.8,1.11562]
[1642719407726,1.55994912,3066.0,3064.9,3.35]
[1642719407727,0.00222144,3066.0,3064.9,3.35]
[1642719408016,0.00170527,3065.7,3065.1,0.01922558]
[1642719408214,0.00170527,3065.7,3065.3,2.44622]
[1642719408416,0.00170527,3065.7,3065.4,0.681]
[1642719408615,0.6713575,3066.7,3065.7,2.3]
[1642719408816,0.00222144,3066.7,3065.8,1.1962736]
[1642719409013,0.00284211,3066.2,3065.8,0.381]
[1642719409214,0.00284211,3066.2,3066.0,0.81534]
[1642719409413,2.26740788,3067.0,3066.0,0.81534]
[1642719409414,2.22190301,3067.0,3066.0,0.81534]
[1642719409716,0.05,3067.2,3065.9,1.93067]
[1642719409717,0.00397897,3066.8,3065.9,1.93067]
[1642719409916,0.00397897,3066.8,3065.9,3.23067]
[1642719410119,0.00341054,3066.7,3066.0,1.0]
[1642719410314,0.00341054,3066.7,3065.9,1.93067]
[1642719410512,0.00284212,3066.6,3065.9,3.23067]
[1642719410716,0.00284212,3066.6,3065.9,1.93067]
[1642719410917,0.05,3067.2,3066.1,0.81535]
[1642719410918,0.0022737,3066.5,3066.1,0.81535]
[1642719411120,0.0022737,3066.5,3066.1,1.11535]
[1642719411317,0.00170527,3066.4,3066.2,1.63039]
[1642719411717,0.00113685,3066.3,3066.2,1.63039]
[1642719412318,0.00113685,3066.3,3066.2,1.93039]
[1642719412519,0.00113685,3066.3,3066.2,1.63839]
[1642719412724,0.00113685,3066.3,3066.2,1.93839]
[1642719413220,0.00113685,3066.3,3066.2,2.16239]
[1642719413420,3.685e-05,3066.3,3066.2,2.54339]
[1642719413623,0.05,3067.2,3066.4,1.68860977]
[1642719413823,0.05,3067.2,3066.6,0.05886678]
[1642719414020,0.00454739,3067.1,3066.6,0.381]
[1642719414220,0.00454739,3067.1,3066.7,1.0593]
[1642719414420,4.51891176,3068.4,3067.0,0.01278744]
[1642719414421,3.9465,3068.4,3067.0,0.01278744]
[1642719414623,1.5232309,3069.0,3067.2,1.6298]
[1642719414821,0.00738951,3068.3,3067.3,2.2105424]
[1642719415018,0.00738951,3068.3,3067.4,0.3]
[1642719415225,0.00682108,3068.2,3067.4,0.681]
[1642719415474,0.00682108,3068.2,3067.6,0.81488]
[1642719415676,0.00625266,3068.1,3067.6,0.81488]
[1642719415877,0.00625266,3068.1,3067.6,1.11488]
[1642719416078,0.00568424,3068.0,3067.6,0.81488]
[1642719416276,0.00568424,3068.0,3067.6,1.11488]
[1642719416480,0.00511581,3067.9,3067.2,0.1303]
[1642719416679,0.00511581,3067.9,3067.1,1.0]
[1642719416879,0.00454739,3067.8,3067.1,1.3]
[1642719417077,0.00454739,3067.8,3066.8,0.00113685]
[1642719417283,0.57241176,3068.5,3066.8,0.00113685]
[1642719417284,0.00397897,3067.7,3066.8,0.00113685]
[1642719417681,1.57241176,3068.5,3066.8,0.00113685]
[1642719417682,0.00341054,3067.6,3066.8,0.00113685]
[1642719418080,0.00284212,3067.5,3066.8,0.00113685]
[1642719418296,0.00284212,3067.5,3066.8,3.685e-05]
[1642719418482,1.57241176,3068.1,3066.8,3.685e-05]
[1642719418483,0.82081993,3067.3,3066.8,3.685e-05]
[1642719418679,0.5146737,3067.4,3065.5,0.00742635]
[1642719418680,0.01311266,3067.1,3065.5,0.00742635]
[1642719419135,0.01181408,3066.9,3065.5,0.00742635]
[1642719419336,18.9511,3067.0,3065.5,0.00742635]
[1642719419541,0.81567,3066.6,3065.5,0.00742635]
[1642719419743,0.00369111,3066.4,3064.9,0.01083689]
[1642719419944,18.95,3066.3,3064.9,0.01083689]
[1642719420144,0.00878498,3066.2,3064.7,0.01197374]
[1642719420342,3.51352426,3066.2,3064.7,0.01197374]
[1642719420543,0.8159361,3066.0,3064.4,2.01367901]
[1642719420841,0.00222426,3065.9,3064.5,0.01311058]
[1642719421051,0.00222426,3066.1,3064.5,0.01311058]
[1642719421239,20.88167,3066.3,3064.5,0.01311058]
[1642719421240,18.95222426,3066.2,3064.5,0.01311058]
[1642719421440,19.95222426,3066.2,3064.5,0.01311058]
[1642719421639,18.95222426,3066.2,3064.5,0.01311058]
[1642719421845,19.76796426,3066.2,3064.5,0.01311058]
[1642719422240,23.06796426,3066.2,3064.5,0.01311058]
[1642719423463,23.06796426,3066.2,3064.6,0.1303]
[1642719423863,22.25222426,3066.2,3064.7,0.01197374]
[1642719424066,22.25222426,3066.2,3064.8,0.1303]
[1642719424465,22.25222426,3066.2,3064.9,0.01083689]
[1642719424665,3.30222426,3066.2,3065.0,0.1303]
[1642719424864,3.30222426,3066.2,3065.1,0.05128022]
[1642719425066,3.30222426,3066.2,3065.3,0.81556]
[1642719425268,3.30222426,3066.2,3065.4,0.1303]
[1642719425269,3.3,3066.2,3065.4,0.1303]
[1642719425466,3.3,3066.2,3065.4,0.00799477]
[1642719425671,3.3,3066.2,3065.5,0.00742635]
[1642719425868,3.3,3066.2,3065.4,0.00799477]
[1642719426168,3.3,3066.2,3065.5,0.8155]
[1642719426367,3.3,3066.2,3065.5,1.1155]
[1642719426619,3.3,3066.2,3065.6,0.00685793]
[1642719427020,3.3,3066.2,3065.6,0.30685793]
[1642719427219,3.3,3066.2,3065.7,0.81541]
[1642719427420,3.3,3066.2,3065.7,1.1216995]
[1642719427619,3.3,3066.2,3065.8,0.00572108]
[1642719427820,3.2,3066.2,3065.8,0.00572108]
[1642719428021,3.2,3066.2,3065.8,0.30572108]
[1642719428227,3.2,3066.2,3065.8,1.12115108]
[1642719428423,3.2,3066.2,3065.9,0.00515266]
[1642719431371,3.2,3066.2,3066.0,0.04501619]
[1642719431575,0.0011,3067.0,3066.3,0.81522]
[1642719431773,0.0011,3067.0,3066.4,0.381]
[1642719431971,0.0011,3067.0,3066.4,0.38331054]
[1642719432171,0.0011,3067.0,3066.5,0.00174211]
[1642719432371,0.0011,3067.0,3066.5,0.38274211]
[1642719432570,0.0011,3067.0,3066.5,0.68274211]
[1642719432771,0.0011,3067.0,3066.7,0.81512]
[1642719432972,0.0011,3067.0,3066.8,0.51919997]
[1642719433574,0.0011,3067.0,3066.9,3.3132]
[1642719433774,0.0011,3067.0,3066.9,3.6942]
[1642719434141,0.0011,3067.0,3066.9,1.8442]
[1642719434336,0.0011,3067.0,3066.9,1.981]
[1642719434536,0.0011,3067.0,3066.9,0.981]
[1642719434735,0.0011,3067.0,3066.9,0.681]
[1642719434941,0.0011,3067.0,3066.9,0.981]
[1642719435240,0.0011,3067.0,3066.9,0.681]
[1642719435636,0.0011,3067.0,3066.9,0.981]
[1642719436236,18.45332426,3068.2,3066.9,0.981]
[1642719436439,0.00222528,3068.1,3066.9,0.981]
[1642719436636,0.00568424,3068.0,3066.9,0.981]
[1642719437035,0.00511581,3067.9,3066.9,0.681]
[1642719437235,0.00511581,3067.9,3066.9,0.981]
[1642719437442,0.00222528,3068.1,3066.9,0.981]
[1642719437443,0.00454739,3067.8,3066.9,0.981]
[1642719437863,0.00397897,3067.7,3066.9,0.681]
[1642719438071,0.00397897,3067.7,3066.9,0.981]
[1642719438270,0.00341054,3067.6,3066.9,0.6]
[1642719438469,0.00341054,3067.6,3066.9,0.3]
[1642719438676,0.00284212,3067.5,3066.8,1.55339997]
[1642719439069,0.0022737,3067.4,3066.8,1.55339997]
[1642719439569,0.00170527,3067.3,3066.8,1.55339997]
[1642719439969,0.00222528,3068.1,3066.8,1.55339997]
[1642719439970,0.00113685,3067.2,3066.8,1.55339997]
[1642719440772,0.00113685,3067.2,3066.9,1.63013]
[1642719440972,0.00113685,3067.2,3067.0,0.04660813]
[1642719441175,0.00113685,3067.2,3066.9,1.63013]
[1642719441176,0.00113685,3067.2,3067.1,0.81503]
[1642719441618,0.00113685,3067.2,3067.1,1.41503]
[1642719443118,0.55772234,3068.6,3067.2,1.65]
[1642719443119,19.46284254,3068.6,3067.2,1.65]
[1642719443319,18.95,3068.6,3067.3,0.97824]
[1642719443520,18.95,3068.6,3067.3,2.57824]
[1642719443521,0.00682108,3068.4,3067.3,2.57824]
[1642719443726,0.00682108,3068.4,3067.3,0.81504]
[1642719443919,0.00625266,3068.3,3067.0,0.381]
[1642719444318,0.00568423,3068.2,3067.1,0.81509]
[1642719444520,0.00568423,3068.2,3067.2,2.011]
[1642719444721,0.00511581,3068.1,3067.3,0.381]
[1642719445120,0.00454739,3068.0,3067.3,0.681]
[1642719445580,0.00397896,3067.9,3067.3,0.381]
[1642719445977,0.00341054,3067.8,3067.3,0.5442]
[1642719446382,0.00284212,3067.7,3067.3,0.5442]
[1642719446580,0.00284212,3067.7,3067.3,1.35925]
[1642719446778,0.00227369,3067.6,3067.5,0.01383743]
[1642719446979,0.00227369,3067.6,3067.5,0.39483743]
[1642719447182,0.00852635,3067.6,3067.5,0.69483743]
[1642719448080,0.00852635,3067.6,3067.5,0.39483743]
[1642719449122,0.00852635,3067.6,3067.5,0.01383743]
[1642719450325,0.00852635,3067.6,3067.1,1.07893743]
[1642719450526,0.00852635,3067.6,3067.1,1.37893743]
[1642719450729,0.00170527,3067.5,3067.1,1.37893743]
[1642719451128,0.00113685,3067.4,3067.1,1.37893743]
[1642719451328,2.30707744,3068.4,3067.1,1.37893743]
[1642719451533,0.81511,3068.7,3067.1,1.37893743]
[1642719451731,0.00511581,3068.3,3067.3,0.81507]
[1642719452137,0.00454738,3068.2,3067.7,0.01299969]
[1642719452529,0.00397896,3068.1,3067.7,0.01299969]
[1642719452729,0.00397896,3068.1,3067.6,0.81497]
[1642719452973,2.46534095,3068.8,3067.6,1.49597]
[1642719452974,0.00341054,3068.0,3067.6,1.49597]
[1642719453175,0.00341054,3068.0,3067.6,1.79597]
[1642719453376,0.00284211,3067.9,3067.6,1.79597]
[1642719453775,0.00227369,3067.8,3067.6,1.79597]
[1642719454182,4.46534095,3068.8,3067.6,1.79597]
[1642719454183,0.00170527,3067.7,3067.6,1.79597]
[1642719454577,0.0073895,3067.7,3067.6,1.79597]
[1642719455075,0.0073895,3067.7,3067.6,0.981]
[1642719455477,0.0073895,3067.7,3067.6,1.981]
[1642719455774,0.0073895,3067.7,3067.6,2.74592]
[1642719457618,3.3073895,3067.7,3067.6,2.90912]
[1642719459424,3.3073895,3067.7,3067.6,2.74592]